fUSD/lending_fUSD_20240630
["ID","MTS","AMOUNT","RATE_DAILY","PERIOD"]
[330681493,1719707433669,-500.0,0.00013698,3]
[330681494,1719707433678,-500.0,0.00013698,3]
[330681495,1719707433689,-500.0,0.00013698,3]
[330681496,1719707433698,-151.477243,0.00013698,2]
[330681497,1719707433708,-500.0,0.00013698,3]
[330681498,1719707433718,-776.52,0.00013698,3]
[330681499,1719707433727,-500.0,0.00013698,3]
[330681500,1719707433737,-748.92,0.00013698,3]
[330681501,1719707433747,-151.0,0.00013698,2]
[330681502,1719707433756,-500.0,0.00013698,3]
[330681503,1719707433766,-151.0,0.00013698,2]
[330681504,1719707433775,-500.0,0.00013698,3]
[330681505,1719707433785,-500.0,0.00013698,3]
[330681506,1719707433794,-500.0,0.00013698,3]
[330681507,1719707433804,-500.0,0.00013698,3]
[330681508,1719707433813,-500.0,0.00013698,3]
[330681509,1719707433823,-500.0,0.00013698,3]
[330681510,1719707433833,-500.0,0.00013698,3]
[330681511,1719707433843,-500.0,0.00013698,3]
[330681512,1719707433853,-683.4,0.00013698,3]
[330681513,1719707433862,-500.0,0.00013698,3]
[330681514,1719707433871,-1975.75,0.00013698,3]
[330681515,1719707433881,-500.0,0.00013698,3]
[330681516,1719707433891,-500.0,0.00013698,3]
[330681517,1719707433900,-500.0,0.00013698,3]
[330681518,1719707433912,-500.0,0.00013698,3]
[330681519,1719707433921,-500.0,0.00013698,3]
[330681520,1719707433930,-747.34,0.00013698,3]
[330681521,1719707433939,-522.76,0.00013698,3]
[330681522,1719707433947,-1065.77,0.00013698,3]
[330681523,1719707433957,-701.23,0.00013698,3]
[330681524,1719707433966,-500.0,0.00013698,3]
[330681525,1719707433975,-654.48,0.00013698,3]
[330681526,1719707433984,-500.0,0.00013698,3]
[330681527,1719707433993,-923.03,0.00013698,3]
[330681528,1719707434002,-1095.7,0.00013698,3]
[330681529,1719707434011,-1850.64,0.00013698,3]
[330681530,1719707434020,-757.42,0.00013698,3]
[330681531,1719707434030,-151.786449,0.00013698,2]
[330681532,1719707434039,-500.0,0.00013698,3]
[330681533,1719707434048,-500.0,0.00013698,3]
[330681534,1719707434060,-500.0,0.00013698,3]
[330681535,1719707434072,-500.0,0.00013698,3]
[330681536,1719707434082,-565.27,0.00013698,3]
[330681537,1719707434091,-500.0,0.00013698,3]
[330681538,1719707434101,-680.24,0.00013698,3]
[330681539,1719707434110,-1160.66,0.00013698,3]
[330681540,1719707434119,-500.0,0.00013698,3]
[330681541,1719707434128,-500.0,0.00013698,3]
[330681542,1719707434138,-751.29,0.00013698,3]
[330681543,1719707434147,-500.0,0.00013698,3]
[330681544,1719707434160,-500.0,0.00013698,3]
[330681545,1719707434170,-500.0,0.00013698,3]
[330681546,1719707434179,-500.0,0.00013698,3]
[330681547,1719707434188,-500.0,0.00013698,3]
[330681548,1719707434198,-500.0,0.00013698,3]
[330681549,1719707434207,-1108.41,0.00013698,3]
[330681550,1719707434215,-500.0,0.00013698,3]
[330681551,1719707434224,-500.0,0.00013698,3]
[330681552,1719707434233,-500.0,0.00013698,3]
[330681553,1719707434243,-1552.82,0.00013698,3]
[330681554,1719707434252,-500.0,0.00013698,3]
[330681555,1719707434262,-500.0,0.00013698,3]
[330681556,1719707434271,-907.31,0.00013698,3]
[330681557,1719707434280,-500.0,0.00013698,3]
[330681558,1719707434289,-500.0,0.00013698,3]
[330681559,1719707434298,-572.54,0.00013698,3]
[330681560,1719707434308,-500.0,0.00013698,3]
[330681561,1719707434317,-500.0,0.00013698,3]
[330681562,1719707434327,-500.0,0.00013698,3]
[330681563,1719707434336,-500.0,0.00013698,3]
[330681564,1719707434345,-500.0,0.00013698,3]
[330681565,1719707434356,-583.37,0.00013698,3]
[330681566,1719707434366,-500.0,0.00013698,3]
[330681567,1719707434376,-500.0,0.00013698,3]
[330681568,1719707434385,-500.0,0.00013698,3]
[330681569,1719707434394,-500.0,0.00013698,3]
[330681570,1719707434404,-500.0,0.00013698,3]
[330681571,1719707434413,-947.53,0.00013698,3]
[330681572,1719707434423,-573.94,0.00013698,3]
[330681573,1719707434432,-662.77,0.00013698,3]
[330681574,1719707434441,-500.0,0.00013698,3]
[330681575,1719707434450,-500.0,0.00013698,3]
[330681576,1719707434459,-1053.34,0.00013698,3]
[330681577,1719707434468,-500.0,0.00013698,3]
[330681578,1719707434478,-500.0,0.00013698,3]
[330681579,1719707434487,-691.07,0.00013698,3]
[330681580,1719707434496,-500.0,0.00013698,3]
[330681581,1719707434505,-500.0,0.00013698,3]
[330681582,1719707434515,-500.0,0.00013698,3]
[330681583,1719707434524,-645.82,0.00013698,3]
[330681584,1719707434533,-617.4,0.00013698,3]
[330681585,1719707434542,-500.0,0.00013698,3]
[330681586,1719707434551,-500.0,0.00013698,3]
[330681587,1719707434560,-500.0,0.00013698,3]
[330681588,1719707434569,-631.38,0.00013698,3]
[330681589,1719707434578,-500.0,0.00013698,2]
[330681590,1719707434587,-914.5,0.00013698,3]
[330681591,1719707434597,-584.32424356,0.00013698,3]
[330681592,1719707434607,-660.19,0.00013698,3]
[330681593,1719707434617,-601.77,0.00013698,3]
[330681594,1719707434626,-500.0,0.00013698,3]
[330681595,1719707434635,-500.0,0.00013698,3]
[330681596,1719707434644,-151.0,0.00013698,2]
[330681597,1719707434654,-539.49,0.00013698,3]
[330681598,1719707434664,-500.0,0.00013698,3]
[330681599,1719707434673,-500.0,0.00013698,3]
[330681600,1719707434682,-1107.49,0.00013698,3]
[330681601,1719707434691,-500.0,0.00013698,3]
[330681602,1719707434701,-2012.95,0.00013698,3]
[330681603,1719707434710,-526.53,0.00013698,3]
[330681604,1719707434720,-2014.68,0.00013698,3]
[330681605,1719707434731,-567.78,0.00013698,3]
[330681606,1719707434741,-502.47,0.00013698,3]
[330681607,1719707434751,-500.0,0.00013698,3]
[330681608,1719707434760,-500.0,0.00013698,3]
[330681609,1719707434771,-500.0,0.00013698,3]
[330681610,1719707434781,-500.0,0.00013698,3]
[330681611,1719707434790,-500.0,0.00013698,3]
[330681612,1719707434799,-500.0,0.00013698,3]
[330681613,1719707434809,-1236.2,0.00013698,3]
[330681614,1719707434818,-500.0,0.00013698,3]
[330681615,1719707434828,-500.0,0.00013698,3]
[330681616,1719707434837,-500.0,0.00013698,3]
[330681617,1719707434847,-500.0,0.00013698,3]
[330681618,1719707434856,-500.0,0.00013698,3]
[330681619,1719707434866,-500.0,0.00013698,3]
[330681620,1719707434875,-500.0,0.00013698,3]
[330681621,1719707434886,-500.0,0.00013698,3]
[330681622,1719707434895,-500.0,0.00013698,3]
[330681623,1719707434905,-1252.21,0.00013698,3]
[330681624,1719707434915,-580.53,0.00013698,3]
[330681625,1719707434924,-894.37,0.00013698,3]
[330681626,1719707434934,-151.0,0.00013698,2]
[330681627,1719707434943,-151.0,0.00013698,2]
[330681628,1719707434953,-500.0,0.00013698,3]
[330681629,1719707434963,-151.0,0.00013698,2]
[330681630,1719707434972,-151.0,0.00013698,2]
[330681631,1719707434982,-500.0,0.00013698,3]
[330681632,1719707434991,-500.0,0.00013698,3]
[330681633,1719707435002,-151.0,0.00013698,2]
[330681634,1719707435012,-151.0,0.00013698,2]
[330681635,1719707435022,-612.94,0.00013698,3]
[330681636,1719707435032,-500.0,0.00013698,3]
[330681637,1719707435042,-151.0,0.00013698,2]
[330681638,1719707435051,-151.0,0.00013698,2]
[330681639,1719707435061,-588.39,0.00013698,3]
[330681640,1719707435071,-875.33,0.00013698,3]
[330681641,1719707435086,-500.0,0.00013698,3]
[330681642,1719707435095,-546.44,0.00013698,3]
[330681643,1719707435105,-500.0,0.00013698,3]
[330681644,1719707435115,-151.0,0.00013698,2]
[330681645,1719707435126,-151.0,0.00013698,2]
[330681646,1719707435136,-1380.11,0.00013698,3]
[330681647,1719707435145,-500.0,0.00013698,3]
[330681648,1719707435156,-500.0,0.00013698,3]
[330681649,1719707435166,-500.0,0.00013698,3]
[330681650,1719707435175,-598.56,0.00013698,3]
[330681651,1719707435186,-654.88,0.00013698,3]
[330681652,1719707435195,-500.0,0.00013698,3]
[330681653,1719707435205,-580.79,0.00013698,3]
[330681654,1719707435215,-738.95,0.00013698,3]
[330681655,1719707435225,-500.0,0.00013698,3]
[330681656,1719707435234,-500.0,0.00013698,3]
[330681657,1719707435244,-686.04,0.00013698,3]
[330681658,1719707435254,-151.501723,0.00013698,2]
[330681659,1719707435263,-635.43,0.00013698,3]
[330681660,1719707435273,-167.84115468,0.00013698,3]
[330681661,1719707435283,-500.0,0.00013698,3]
[330681662,1719707435293,-1038.75,0.00013698,3]
[330681663,1719707435302,-500.0,0.00013698,3]
[330681664,1719707435312,-500.0,0.00013698,3]
[330681665,1719707435321,-500.0,0.00013698,3]
[330681666,1719707435331,-500.0,0.00013698,3]
[330681667,1719707435341,-500.0,0.00013698,3]
[330681668,1719707435351,-1163.13,0.00013698,3]
[330681669,1719707435361,-500.0,0.00013698,3]
[330681670,1719707435371,-960.06,0.00013698,3]
[330681671,1719707435381,-500.0,0.00013698,3]
[330681672,1719707435390,-500.0,0.00013698,3]
[330681673,1719707435400,-500.0,0.00013698,3]
[330681674,1719707435411,-689.52,0.00013698,3]
[330681675,1719707435420,-500.0,0.00013698,3]
[330681676,1719707435430,-500.0,0.00013698,3]
[330681677,1719707435440,-500.0,0.00013698,3]
[330681678,1719707435449,-587.77,0.00013698,3]
[330681679,1719707435459,-732.07,0.00013698,3]
[330681680,1719707435469,-500.0,0.00013698,3]
[330681681,1719707435478,-598.76,0.00013698,3]
[330681682,1719707435488,-500.0,0.00013698,3]
[330681683,1719707435497,-500.0,0.00013698,3]
[330681684,1719707435507,-500.0,0.00013698,3]
[330681685,1719707435517,-500.0,0.00013698,3]
[330681686,1719707435527,-572.77,0.00013698,3]
[330681687,1719707435536,-1442.8,0.00013698,3]
[330681688,1719707435546,-500.0,0.00013698,3]
[330681689,1719707435555,-508.3,0.00013698,3]
[330681690,1719707435566,-748.99,0.00013698,3]
[330681691,1719707435575,-151.0,0.00013698,2]
[330681692,1719707435585,-500.0,0.00013698,3]
[330681693,1719707435595,-151.0,0.00013698,2]
[330681694,1719707435607,-151.0,0.00013698,2]
[330681695,1719707435617,-500.0,0.00013698,3]
[330681696,1719707435627,-500.0,0.00013698,3]
[330681697,1719707435637,-500.0,0.00013698,3]
[330681698,1719707435646,-631.61,0.00013698,3]
[330681699,1719707435656,-500.0,0.00013698,3]
[330681700,1719707435674,-500.0,0.00013698,3]
[330681701,1719707435683,-500.0,0.00013698,3]
[330681702,1719707435693,-917.47,0.00013698,3]
[330681703,1719707435703,-500.0,0.00013698,3]
[330681704,1719707435712,-151.0,0.00013698,2]
[330681705,1719707435722,-151.0,0.00013698,2]
[330681706,1719707435733,-151.0,0.00013698,2]
[330681707,1719707435743,-151.0,0.00013698,2]
[330681708,1719707435755,-500.0,0.00013698,3]
[330681709,1719707435765,-500.0,0.00013698,3]
[330681710,1719707435774,-500.0,0.00013698,3]
[330681711,1719707435784,-1009.32,0.00013698,3]
[330681712,1719707435794,-500.0,0.00013698,3]
[330681713,1719707436161,-500.0,0.00013698,3]
[330681714,1719707436172,-500.0,0.00013698,3]
[330681715,1719707436183,-2832.7,0.00013698,3]
[330681716,1719707436194,-500.0,0.00013698,3]
[330681717,1719707436203,-151.0,0.00013698,2]
[330681718,1719707436212,-151.0,0.00013698,2]
[330681719,1719707436222,-207.712168,0.00013698,2]
[330681720,1719707436231,-500.0,0.00013698,3]
[330681721,1719707436240,-151.0,0.00013698,2]
[330681722,1719707436251,-500.0,0.00013698,3]
[330681723,1719707436260,-500.0,0.00013698,3]
[330681724,1719707436270,-500.0,0.00013698,3]
[330681725,1719707436280,-151.0,0.00013698,2]
[330681726,1719707436290,-500.0,0.00013698,3]
[330681727,1719707436300,-500.0,0.00013698,3]
[330681728,1719707436310,-151.0,0.00013698,2]
[330681729,1719707436320,-500.0,0.00013698,3]
[330681730,1719707436330,-158.29828,0.00013698,2]
[330681731,1719707436339,-500.0,0.00013698,3]
[330681732,1719707436349,-500.0,0.00013698,3]
[330681733,1719707436359,-151.0,0.00013698,2]
[330681734,1719707436369,-151.0,0.00013698,2]
[330681735,1719707436379,-189.681504,0.00013698,2]
[330681736,1719707436388,-553.02,0.00013698,3]
[330681737,1719707436397,-759.85,0.00013698,3]
[330681738,1719707436409,-500.0,0.00013698,3]
[330681739,1719707436418,-169.96998652,0.00013698,3]
[330681740,1719707436428,-544.29,0.00013698,3]
[330681741,1719707436437,-2001.73,0.00013698,3]
[330681742,1719707436447,-500.0,0.00013698,3]
[330681743,1719707436456,-561.93,0.00013698,3]
[330681744,1719707436466,-702.33,0.00013698,3]
[330681745,1719707436475,-2222.17,0.00013698,3]
[330681746,1719707436484,-500.0,0.00013698,3]
[330681747,1719707436494,-176.058804,0.00013698,2]
[330681748,1719707436503,-500.0,0.00013698,3]
[330681749,1719707436512,-500.0,0.00013698,3]
[330681750,1719707436523,-500.0,0.00013698,3]
[330681751,1719707436532,-1674.5,0.00013698,3]
[330681752,1719707436541,-805.61,0.00013698,3]
[330681753,1719707436551,-151.0,0.00013698,2]
[330681754,1719707436561,-500.0,0.00013698,3]
[330681755,1719707436570,-500.0,0.00013698,3]
[330681756,1719707436579,-151.0,0.00013698,2]
[330681757,1719707436589,-502.07,0.00013698,3]
[330681758,1719707436599,-151.0,0.00013698,2]
[330681759,1719707436609,-500.0,0.00013698,3]
[330681760,1719707436618,-500.0,0.00013698,3]
[330681761,1719707436628,-500.0,0.00013698,3]
[330681762,1719707436637,-500.0,0.00013698,3]
[330681763,1719707436647,-500.0,0.00013698,3]
[330681764,1719707436656,-500.0,0.00013698,3]
[330681765,1719707436666,-1089.62,0.00013698,3]
[330681766,1719707436675,-153.893311,0.00013698,2]
[330681767,1719707436685,-500.0,0.00013698,3]
[330681768,1719707436695,-1292.95,0.00013698,3]
[330681769,1719707436705,-500.0,0.00013698,3]
[330681770,1719707436715,-792.24,0.00013698,3]
[330681771,1719707436724,-1740.77,0.00013698,3]
[330681772,1719707436735,-1046.36,0.00013698,3]
[330681773,1719707436744,-500.0,0.00013698,3]
[330681774,1719707436754,-5326.75,0.00013698,3]
[330681775,1719707436764,-500.0,0.00013698,3]
[330681776,1719707436774,-1048.96,0.00013698,3]
[330681777,1719707436784,-500.0,0.00013698,3]
[330681778,1719707436793,-724.14,0.00013698,3]
[330681779,1719707436804,-500.0,0.00013698,3]
[330681780,1719707436814,-500.0,0.00013698,3]
[330681781,1719707436824,-500.0,0.00013698,3]
[330681782,1719707436834,-1089.52,0.00013698,3]
[330681783,1719707436843,-500.0,0.00013698,3]
[330681784,1719707436853,-500.0,0.00013698,3]
[330681785,1719707436862,-500.0,0.00013698,3]
[330681786,1719707436872,-777.4,0.00013698,3]
[330681787,1719707436882,-524.83,0.00013698,3]
[330681788,1719707436892,-337.15,0.00013698,3]
[330681789,1719707436901,-636.92,0.00013698,3]
[330681790,1719707436912,-151.0,0.00013698,2]
[330681791,1719707436921,-500.0,0.00013698,3]
[330681792,1719707436931,-500.0,0.00013698,3]
[330681793,1719707436940,-1257.4,0.00013698,3]
[330681794,1719707436950,-532.46437722,0.00013698,3]
[330681795,1719707436960,-500.0,0.00013698,3]
[330681796,1719707436969,-777.09,0.00013698,3]
[330681797,1719707436979,-500.0,0.00013698,3]
[330681798,1719707436989,-151.0,0.00013698,2]
[330681799,1719707436998,-500.0,0.00013698,3]
[330681800,1719707437009,-500.0,0.00013698,3]
[330681801,1719707437022,-500.0,0.00013698,3]
[330681802,1719707437032,-1472.3,0.00013698,3]
[330681803,1719707437042,-500.0,0.00013698,3]
[330681804,1719707437052,-500.0,0.00013698,3]
[330681805,1719707437062,-4579.88,0.00013698,3]
[330681806,1719707437076,-599.74,0.00013698,3]
[330681807,1719707437087,-1240.07,0.00013698,3]
[330681808,1719707437098,-500.0,0.00013698,3]
[330681809,1719707437108,-500.0,0.00013698,3]
[330681810,1719707437118,-500.0,0.00013698,3]
[330681811,1719707437128,-581.42,0.00013698,3]
[330681812,1719707437137,-500.0,0.00013698,3]
[330681813,1719707437147,-500.0,0.00013698,3]
[330681814,1719707437161,-1104.13,0.00013698,3]
[330681815,1719707437173,-828.28,0.00013698,3]
[330681816,1719707437182,-500.0,0.00013698,3]
[330681817,1719707437192,-500.0,0.00013698,3]
[330681818,1719707437202,-500.0,0.00013698,3]
[330681819,1719707437212,-500.0,0.00013698,3]
[330681820,1719707437221,-500.0,0.00013698,3]
[330681821,1719707437231,-510.9,0.00013698,3]
[330681822,1719707437240,-587.89,0.00013698,3]
[330681823,1719707437250,-1249.88,0.00013698,3]
[330681824,1719707437259,-2595.22,0.00013698,3]
[330681826,1719707437269,-500.0,0.00013698,3]
[330681829,1719707437278,-860.66,0.00013698,3]
[330681830,1719707437288,-906.18,0.00013698,3]
[330681832,1719707437297,-1329.25,0.00013698,3]
[330681833,1719707437306,-2049.0,0.00013698,3]
[330681835,1719707437316,-687.86,0.00013698,3]
[330681837,1719707437325,-500.0,0.00013698,3]
[330681838,1719707437335,-151.0,0.00013698,2]
[330681839,1719707437345,-156.315459,0.00013698,2]
[330681840,1719707437356,-656.84,0.00013698,3]
[330681841,1719707437365,-500.0,0.00013698,3]
[330681842,1719707437375,-151.0,0.00013698,2]
[330681843,1719707437384,-748.43,0.00013698,3]
[330681844,1719707437393,-500.0,0.00013698,3]
[330681845,1719707437402,-500.0,0.00013698,3]
[330681846,1719707437414,-221.00691722,0.00013698,3]
[330681847,1719707437424,-787.03,0.00013698,3]
[330681848,1719707437434,-500.0,0.00013698,3]
[330681849,1719707437444,-151.0,0.00013698,2]
[330681850,1719707437454,-151.0,0.00013698,2]
[330681851,1719707437463,-546.95,0.00013698,3]
[330681852,1719707437472,-151.0,0.00013698,2]
[330681853,1719707437482,-500.0,0.00013698,3]
[330681854,1719707437492,-500.0,0.00013698,3]
[330681855,1719707437501,-718.36,0.00013698,3]
[330681856,1719707437511,-500.0,0.00013698,3]
[330681857,1719707437521,-601.53,0.00013698,3]
[330681858,1719707437531,-3192.56,0.00013698,3]
[330681859,1719707437540,-1302.09,0.00013698,3]
[330681860,1719707437550,-500.0,0.00013698,3]
[330681861,1719707437560,-500.0,0.00013698,3]
[330681862,1719707437570,-2511.3,0.00013698,3]
[330681863,1719707437580,-500.0,0.00013698,3]
[330681864,1719707437589,-151.0,0.00013698,2]
[330681865,1719707437599,-500.0,0.00013698,3]
[330681866,1719707437610,-500.0,0.00013698,3]
[330681867,1719707437620,-151.0,0.00013698,2]
[330681868,1719707437630,-500.0,0.00013698,3]
[330681869,1719707437640,-151.0,0.00013698,2]
[330681870,1719707437650,-500.0,0.00013698,3]
[330681871,1719707437661,-187.717116,0.00013698,2]
[330681872,1719707437671,-500.0,0.00013698,3]
[330681873,1719707437680,-500.0,0.00013698,3]
[330681874,1719707437690,-815.98,0.00013698,3]
[330681875,1719707437700,-500.0,0.00013698,3]
[330681876,1719707437710,-648.63,0.00013698,3]
[330681877,1719707437720,-500.0,0.00013698,3]
[330681879,1719707437730,-500.0,0.00013698,3]
[330681881,1719707437740,-151.0,0.00013698,2]
[330681883,1719707437752,-151.0,0.00013698,2]
[330681885,1719707437762,-500.0,0.00013698,3]
[330681887,1719707437772,-500.0,0.00013698,3]
[330681889,1719707437782,-500.0,0.00013698,3]
[330681891,1719707437791,-506.66,0.00013698,3]
[330681893,1719707437801,-500.0,0.00013698,3]
[330681895,1719707437811,-750.28,0.00013698,3]
[330681897,1719707437822,-500.0,0.00013698,3]
[330681900,1719707437832,-500.0,0.00013698,3]
[330681902,1719707437842,-1164.32,0.00013698,3]
[330681904,1719707437852,-500.0,0.00013698,3]
[330681906,1719707437861,-657.41,0.00013698,3]
[330681908,1719707437872,-739.38,0.00013698,3]
[330681910,1719707437881,-1210.01,0.00013698,3]
[330681912,1719707437890,-500.0,0.00013698,3]
[330681914,1719707437900,-710.32,0.00013698,3]
[330681916,1719707437912,-500.0,0.00013698,3]
[330681918,1719707437922,-1028.41,0.00013698,3]
[330681920,1719707437931,-4738.32,0.00013698,3]
[330681922,1719707437941,-500.0,0.00013698,3]
[330681924,1719707437951,-500.0,0.00013698,3]
[330681926,1719707437960,-500.0,0.00013698,3]
[330681928,1719707437971,-500.0,0.00013698,3]
[330681930,1719707437980,-500.0,0.00013698,3]
[330681932,1719707437990,-500.0,0.00013698,3]
[330681934,1719707438000,-500.0,0.00013698,3]
[330681936,1719707438010,-500.0,0.00013698,3]
[330681938,1719707438020,-500.0,0.00013698,3]
[330681940,1719707438029,-500.0,0.00013698,3]
[330681942,1719707438039,-500.0,0.00013698,3]
[330681944,1719707438049,-1410.85,0.00013698,3]
[330681946,1719707438059,-500.0,0.00013698,3]
[330681948,1719707438068,-518.43,0.00013698,3]
[330681950,1719707438086,-500.0,0.00013698,3]
[330681952,1719707438105,-500.0,0.00013698,3]
[330681954,1719707438125,-772.67,0.00013698,3]
[330681956,1719707438136,-9420.87,0.00013698,3]
[330681958,1719707438146,-500.0,0.00013698,3]
[330681960,1719707438156,-500.0,0.00013698,3]
[330681962,1719707438165,-1081.89,0.00013698,3]
[330681964,1719707438175,-500.0,0.00013698,3]
[330681966,1719707438185,-500.0,0.00013698,3]
[330681968,1719707438194,-500.0,0.00013698,3]
[330681970,1719707438203,-500.0,0.00013698,3]
[330681972,1719707438212,-296.21544,0.00013698,2]
[330681974,1719707438222,-296.21544,0.00013698,2]
[330681976,1719707438235,-296.21544,0.00013698,2]
[330681978,1719707438247,-296.21544,0.00013698,2]
[330681980,1719707438257,-1868.07,0.00013698,3]
[330681982,1719707438266,-1291.23,0.00013698,3]
[330681983,1719707438277,-500.0,0.00013698,3]
[330681985,1719707438286,-296.21544,0.00013698,2]
[330681987,1719707438295,-296.21544,0.00013698,2]
[330681989,1719707438305,-296.21544,0.00013698,2]
[330681991,1719707438315,-296.21544,0.00013698,2]
[330681993,1719707438326,-434.36456592,0.00013698,3]
[330681995,1719707438336,-709.14,0.00013698,3]
[330681997,1719707438345,-725.3,0.00013698,3]
[330681999,1719707438355,-625.99,0.00013698,3]
[330682001,1719707438364,-500.0,0.00013698,3]
[330682003,1719707438374,-782.53,0.00013698,3]
[330682006,1719707438383,-990.17,0.00013698,3]
[330682007,1719707438393,-151.0,0.00013698,2]
[330682010,1719707438403,-559.76187659,0.00013698,3]
[330682012,1719707438414,-500.0,0.00013698,3]
[330682014,1719707438423,-500.0,0.00013698,3]
[330682016,1719707438432,-151.0,0.00013698,2]
[330682018,1719707438441,-500.0,0.00013698,3]
[330682020,1719707438451,-151.0,0.00013698,2]
[330682022,1719707438460,-3112.17,0.00013698,3]
[330682024,1719707438470,-620.39,0.00013698,3]
[330682026,1719707438480,-632.11,0.00013698,3]
[330682028,1719707438490,-500.0,0.00013698,3]
[330682030,1719707438500,-500.0,0.00013698,3]
[330682032,1719707438510,-1163.92,0.00013698,3]
[330682034,1719707438519,-537.03,0.00013698,3]
[330682036,1719707438528,-500.0,0.00013698,3]
[330682038,1719707438538,-500.0,0.00013698,3]
[330682040,1719707438548,-1596.99,0.00013698,3]
[330682042,1719707438557,-500.0,0.00013698,3]
[330682044,1719707438567,-1338.34,0.00013698,3]
[330682046,1719707438576,-1552.52,0.00013698,3]
[330682055,1719707438652,-500.0,0.00013698,3]
[330682057,1719707438663,-500.0,0.00013698,3]
[330682059,1719707438672,-500.0,0.00013698,3]
[330682061,1719707438682,-500.0,0.00013698,3]
[330682063,1719707438692,-1145.84,0.00013698,3]
[330682065,1719707438702,-151.0,0.00013698,2]
[330682067,1719707438711,-2434.67,0.00013698,3]
[330682069,1719707438721,-1125.47,0.00013698,3]
[330682071,1719707438731,-151.0,0.00013698,2]
[330682073,1719707438741,-151.0,0.00013698,2]
[330682075,1719707438751,-1260.48,0.00013698,3]
[330682077,1719707438760,-151.0,0.00013698,2]
[330682079,1719707438770,-500.0,0.00013698,3]
[330682081,1719707438779,-500.0,0.00013698,3]
[330682083,1719707438788,-151.0,0.00013698,2]
[330682085,1719707438798,-151.0,0.00013698,2]
[330682087,1719707438807,-151.0,0.00013698,2]
[330682089,1719707438817,-151.0,0.00013698,2]
[330682091,1719707438826,-294.318695,0.00013698,2]
[330682093,1719707438836,-151.0,0.00013698,2]
[330682094,1719707438845,-500.0,0.00013698,3]
[330682096,1719707438855,-500.0,0.00013698,3]
[330682098,1719707438864,-236.595593,0.00013698,2]
[330682100,1719707438873,-500.0,0.00013698,3]
[330682101,1719707438883,-500.0,0.00013698,3]
[330682102,1719707438892,-588.02,0.00013698,3]
[330682103,1719707438901,-2378.88,0.00013698,3]
[330682104,1719707438912,-543.65,0.00013698,3]
[330682105,1719707438921,-500.0,0.00013698,3]
[330682106,1719707438930,-500.0,0.00013698,3]
[330682107,1719707438939,-500.0,0.00013698,3]
[330682108,1719707438949,-762.47,0.00013698,3]
[330682109,1719707438960,-500.0,0.00013698,3]
[330682110,1719707438969,-500.0,0.00013698,3]
[330682111,1719707438978,-621.81,0.00013698,3]
[330682112,1719707438988,-500.0,0.00013698,3]
[330682113,1719707438997,-500.0,0.00013698,3]